bitfinex/quotes_SOLUSD_20220311
["timestamp","ask_amount","ask_price","bid_price","bid_amount"]
[1647040255633,126.14447957,81.238,81.18,56.1783443]
[1647040255832,3.04447957,81.237,81.18,56.1783443]
[1647040256635,123.1,81.229,81.18,56.1783443]
[1647040256834,129.35,81.229,81.18,56.1783443]
[1647040257035,3.04447957,81.228,81.18,56.1783443]
[1647040259538,3.04447957,81.228,81.171,6.156]
[1647040259739,123.1,81.219,81.171,6.156]
[1647040260338,18.4815,81.22,81.171,6.156]
[1647040260639,29.61996823,81.218,81.172,54.82747119]
[1647040260839,152.71996823,81.218,81.172,54.82747119]
[1647040262841,18.4839,81.21,81.171,6.156]
[1647040263042,160.35996823,81.218,81.171,6.156]
[1647040263043,123.1,81.209,81.171,6.156]
[1647040263242,126.14447957,81.209,81.118,23.1192]
[1647040263659,3.04447957,81.208,81.118,23.1192]
[1647040263860,3.04447957,81.208,81.119,61.24167881]
[1647040264061,171.69013176,81.199,81.119,61.24167881]
[1647040264262,176.43013176,81.199,81.119,61.24167881]
[1647040264560,3.04447957,81.198,81.119,61.24167881]
[1647040266263,123.1,81.189,81.119,61.24167881]
[1647040267765,123.1,81.189,81.12,18.487]
[1647040267966,18.49,81.19,81.12,18.487]
[1647040269265,123.1,81.189,81.12,18.487]
[1647040272571,6.43500629,81.197,81.12,18.487]
[1647040272773,6.43500629,81.197,81.121,6.16]
[1647040272974,6.43500629,81.197,81.141,18.96822118]
[1647040285320,123.1,81.196,81.131,23.3612]
[1647040286221,123.1,81.196,81.132,64.17019151]
[1647040291425,123.1,81.196,81.133,6.16]
[1647040301834,123.1,81.198,81.133,6.16]
[1647040308337,123.07619054,81.198,81.133,6.16]
[1647040317444,141.14289054,81.198,81.133,6.16]
[1647040317845,123.07619054,81.198,81.133,6.16]
[1647040323849,123.07619054,81.198,81.14,18.4829]
[1647040324249,48.59013176,81.199,81.14,18.4829]
[1647040324452,48.59013176,81.199,81.141,24.7937]
[1647040324852,48.59013176,81.199,81.15,18.4805]
[1647040330859,123.1,81.198,81.15,18.4805]
[1647040331059,48.59013176,81.199,81.151,6.159]
[1647040331277,48.59013176,81.199,81.142,6.159]
[1647040332279,123.1,81.198,81.142,6.159]
[1647040332480,48.59013176,81.199,81.142,6.159]
[1647040333779,123.1,81.198,81.142,6.159]
[1647040335381,48.59013176,81.199,81.142,6.159]
[1647040339888,123.1,81.198,81.142,6.159]
[1647040341193,48.59013176,81.199,81.142,6.159]
[1647040341792,48.59013176,81.199,81.15,18.4802]
[1647040341994,1.66578642,81.224,81.152,123.1]
[1647040342194,1.66578642,81.236,81.154,123.1]
[1647040342393,1.66578642,81.238,81.155,6.158]
[1647040342694,1.66578642,81.243,81.155,50.77334158]
[1647040342893,1.66578642,81.246,81.156,116.57233339]
[1647040343093,123.1,81.244,81.157,22.19670848]
[1647040343293,123.1,81.244,81.157,67.90564187]
[1647040343494,64.16090761,81.245,81.158,27.26406271]
[1647040343694,64.16090761,81.245,81.161,123.1]
[1647040343896,64.16090761,81.245,81.163,123.1]
[1647040344394,64.16090761,81.245,81.165,123.1]
[1647040344595,64.16090761,81.245,81.171,123.1]
[1647040344895,64.16090761,81.245,81.17,14.89]
[1647040344896,64.16090761,81.245,81.173,123.1]
[1647040345096,64.16090761,81.245,81.175,123.1]
[1647040345298,64.16090761,81.245,81.177,123.1]
[1647040345496,64.16090761,81.245,81.179,123.1]
[1647040345698,64.16090761,81.245,81.181,123.1]
[1647040345896,64.16090761,81.245,81.183,123.1]
[1647040346095,64.16090761,81.245,81.184,129.256]
[1647040346298,64.16090761,81.245,81.185,22.8092]
[1647040346496,64.16090761,81.245,81.186,6.156]
[1647040352601,123.1,81.244,81.185,22.8092]
[1647040352901,123.1,81.244,81.186,6.156]
[1647040353102,126.14447957,81.244,81.186,6.156]
[1647040353304,126.14447957,81.244,81.185,22.8092]
[1647040358236,64.16090761,81.245,81.185,22.8092]
[1647040363642,1.66578642,81.258,81.185,50.07326271]
[1647040364743,62.78028229,81.257,81.185,50.07326271]
[1647040364944,64.44606871,81.257,81.185,50.07326271]
[1647040365243,62.78028229,81.257,81.185,50.07326271]
[1647040366149,62.78028229,81.257,81.186,123.1]
[1647040366346,62.78028229,81.257,81.186,125.93278889]
[1647040366546,1.66578642,81.269,81.191,123.1]
[1647040366846,1.66578642,81.269,81.19,14.89]
[1647040366847,1.66578642,81.276,81.193,123.1]
[1647040367045,23.8456,81.291,81.193,123.1]
[1647040367046,1.66578642,81.279,81.193,123.1]
[1647040367247,114.48457556,81.28,81.195,123.1]
[1647040367448,1.66578642,81.278,81.195,123.1]
[1647040367647,54.71655467,81.277,81.197,123.1]
[1647040367847,53.05076825,81.277,81.201,123.1]
[1647040368249,53.05076825,81.277,81.203,123.1]
[1647040368448,176.15076825,81.277,81.204,23.5601]
[1647040368651,176.15076825,81.277,81.204,26.39288889]
[1647040368848,176.15076825,81.277,81.205,2.83278889]
[1647040369848,176.15076825,81.277,81.21,18.4653]
[1647040370053,177.81655467,81.277,81.211,17.83388991]
[1647040370251,53.05076825,81.277,81.211,17.83388991]
[1647040370449,1.66578642,81.276,81.211,17.83388991]
[1647040371452,1.66578642,81.275,81.211,17.83388991]
[1647040371652,1.66578642,81.275,81.22,18.4646]
[1647040371953,1.66578642,81.274,81.221,24.8019]
[1647040372950,1.66578642,81.275,81.221,24.8019]
[1647040375653,1.66578642,81.276,81.221,24.8019]
[1647040379656,1.66578642,81.275,81.221,24.8019]
[1647040381655,1.66578642,81.274,81.221,24.8019]
[1647040381858,1.66578642,81.275,81.221,24.8019]
[1647040382358,1.66578642,81.274,81.221,24.8019]
[1647040382760,1.66578642,81.275,81.221,24.8019]
[1647040382961,1.66578642,81.274,81.221,24.8019]
[1647040383159,1.66578642,81.27,81.221,24.8019]
[1647040384183,1.66578642,81.27,81.211,17.83388991]
[1647040384383,176.15076825,81.277,81.211,17.83388991]
[1647040384384,1.66578642,81.269,81.211,17.83388991]
[1647040384985,1.66578642,81.268,81.211,17.83388991]
[1647040386791,1.66578642,81.269,81.211,17.83388991]
[1647040387689,1.66578642,81.27,81.211,17.83388991]
[1647040387889,1.66578642,81.263,81.211,17.83388991]
[1647040388089,1.66578642,81.26,81.211,17.83388991]
[1647040389190,1.66578642,81.258,81.211,17.83388991]
[1647040389791,1.66578642,81.257,81.199,24.5773]
[1647040390191,1.66578642,81.256,81.199,24.5773]
[1647040390792,1.66578642,81.256,81.2,50.8534296]
[1647040390991,1.66578642,81.257,81.2,50.8534296]
[1647040391193,1.66578642,81.256,81.2,50.8534296]
[1647040391394,1.66578642,81.256,81.198,22.5053]
[1647040391594,1.66578642,81.25,81.198,22.5053]
[1647040391795,1.66578642,81.246,81.198,22.5053]
[1647040392294,123.1,81.244,81.198,22.5053]
[1647040392498,123.1,81.239,81.167,6.156]
[1647040392695,1.66578642,81.228,81.167,6.156]
[1647040392896,1.66578642,81.213,81.121,48.4319]
[1647040393095,1.66578642,81.204,81.121,48.4319]
[1647040393297,1.66578642,81.2,81.093,18.1524]
[1647040393498,18.4958,81.16,81.109,57.80107108]
[1647040393696,123.1,81.157,81.109,57.80107108]
[1647040394098,123.1,81.157,81.088,46.4169]
[1647040394297,123.1,81.157,81.088,45.4169]
[1647040394698,123.1,81.149,81.088,45.4169]
[1647040394999,123.1,81.149,81.089,50.11823513]
[1647040395901,12.85642488,81.156,81.089,50.11823513]
[1647040396101,37.00863783,81.158,81.089,50.11823513]
[1647040396299,37.00863783,81.158,81.09,2.80561659]
[1647040396901,160.10863783,81.158,81.09,2.80561659]
[1647040397504,160.10863783,81.158,81.09,21.29971659]
[1647040398002,160.10863783,81.158,81.091,2.80561659]
[1647040399904,160.10863783,81.158,81.089,50.11823513]
[1647040400107,123.1,81.156,81.089,50.11823513]
[1647040400504,123.1,81.149,81.089,50.11823513]
[1647040400905,123.1,81.149,81.07,18.4989]
[1647040401105,123.1,81.149,81.063,2.80561659]
[1647040401305,123.1,81.149,81.058,47.8938]
[1647040401306,158.98161358,81.149,81.058,47.8938]
[1647040401506,162.02609315,81.149,81.058,47.8938]
[1647040401906,162.02609315,81.149,81.059,53.06253162]
[1647040402110,123.1,81.145,81.058,47.8938]
[1647040402307,123.1,81.145,81.027,2.80561659]
[1647040402506,73.87,81.146,81.028,47.6663]
[1647040402507,123.1,81.139,81.028,47.6663]
[1647040402709,130.13,81.139,81.028,47.6663]
[1647040402908,196.97,81.137,81.028,47.6663]
[1647040403107,196.97,81.135,81.029,56.09231739]
[1647040403307,196.97,81.135,81.017,79.18391659]
[1647040403506,196.97,81.133,81.017,76.3783]
[1647040403717,196.97,81.129,81.017,76.3783]
[1647040404007,196.97,81.119,81.017,76.3783]
[1647040404208,123.1,81.117,81.019,51.61608256]
[1647040404408,196.97,81.117,81.019,51.61608256]
[1647040404807,123.1,81.115,81.019,51.61608256]
[1647040405007,123.1,81.109,81.019,51.61608256]
[1647040405310,123.1,81.109,81.02,18.5103]
[1647040405508,3.04447957,81.108,81.02,18.5103]
[1647040406608,123.1,81.107,81.019,51.61608256]
[1647040406809,123.1,81.103,81.019,51.61608256]
[1647040407011,123.1,81.099,81.019,51.61608256]
[1647040407211,129.16,81.099,81.019,51.61608256]
[1647040407711,6.06,81.099,81.019,51.61608256]
[1647040407912,6.06,81.099,81.02,18.5103]
[1647040408513,6.06,81.099,81.021,47.9066]
[1647040408915,6.06,81.099,81.03,18.5075]
[1647040409115,25.15933174,81.104,81.03,18.5075]
[1647040409412,25.15933174,81.104,81.032,44.63594785]
[1647040409815,25.15933174,81.104,81.033,27.57649541]
[1647040410114,123.1,81.103,81.051,50.41618399]
[1647040410312,25.15933174,81.104,81.051,50.41618399]
[1647040410913,123.1,81.103,81.051,50.41618399]
[1647040411113,25.15933174,81.104,81.051,50.41618399]
[1647040412315,123.1,81.103,81.051,50.41618399]
[1647040412718,25.15933174,81.104,81.051,50.41618399]
[1647040413217,6.42251772,81.103,81.051,50.41618399]
[1647040414118,6.42251772,81.103,81.06,18.5009]
[1647040414316,123.1,81.138,81.06,18.5009]
[1647040414519,12.85491576,81.156,81.061,52.29601659]
[1647040414716,47.319,81.177,81.061,77.06689541]
[1647040414918,59.13179758,81.176,81.062,150.67649541]
[1647040415317,123.1,81.175,81.081,45.83584642]
[1647040415521,123.1,81.175,81.082,6.163]
[1647040415917,123.1,81.175,81.081,48.64146301]
[1647040416116,123.1,81.175,81.082,46.7801]
[1647040416516,123.1,81.175,81.082,52.9431]
[1647040417018,123.1,81.175,81.09,18.494]
[1647040417216,123.1,81.175,81.091,6.162]
[1647040417442,123.1,81.175,81.082,46.7801]
[1647040417443,123.1,81.175,81.083,6.162]
[1647040418219,18.4926,81.17,81.101,50.41618399]
[1647040418620,123.1,81.169,81.101,50.41618399]
[1647040420325,46.28022774,81.176,81.11,18.4895]
[1647040420727,46.28022774,81.176,81.111,6.16]
[1647040421125,46.28022774,81.176,81.104,151.7757]
[1647040421525,1.66578642,81.196,81.13,18.4824]
[1647040422028,20.15138642,81.2,81.13,18.4824]
[1647040422428,124.76578642,81.199,81.121,6.16]
[1647040422629,123.1,81.179,81.114,45.83584642]
[1647040422831,134.77230752,81.178,81.115,6.16]
[1647040423228,11.67230752,81.178,81.115,6.16]
[1647040423429,11.67230752,81.178,81.114,45.83584642]
[1647040424333,134.77230752,81.178,81.114,45.83584642]
[1647040426059,134.77230752,81.178,81.115,6.16]
[1647040426457,11.67230752,81.178,81.12,18.4873]
[1647040426656,11.67230752,81.178,81.121,6.16]
[1647040426856,11.67230752,81.178,81.115,6.16]
[1647040428068,11.67230752,81.178,81.12,18.4873]
[1647040428262,11.67230752,81.178,81.121,6.16]
[1647040428960,11.67230752,81.178,81.115,6.16]
[1647040429760,11.67230752,81.178,81.12,18.4876]
[1647040429963,134.77230752,81.178,81.121,6.16]
[1647040430163,134.77230752,81.178,81.115,6.16]
[1647040430362,123.1,81.176,81.114,45.83584642]
[1647040430762,154.89425057,81.176,81.114,45.83584642]
[1647040430966,18.4923,81.17,81.114,45.83584642]
[1647040431162,123.1,81.169,81.114,45.83584642]
[1647040435371,123.1,81.169,81.115,6.162]
[1647040437373,123.1,81.159,81.113,24.1576]
[1647040437984,31.79425057,81.176,81.113,24.1576]
[1647040437985,124.76578642,81.175,81.113,24.1576]
[1647040438173,123.1,81.175,81.114,61.18513352]
[1647040438375,124.76578642,81.175,81.114,61.18513352]
[1647040438574,123.1,81.174,81.114,61.18513352]
[1647040438973,124.76578642,81.172,81.114,61.18513352]
[1647040439175,123.1,81.169,81.114,61.18513352]
[1647040439372,123.1,81.169,81.113,24.1576]
[1647040439775,33.46003699,81.172,81.113,24.1576]
[1647040439776,123.1,81.167,81.113,24.1576]
[1647040440979,123.1,81.164,81.113,24.1576]
[1647040441176,123.1,81.159,81.113,24.1576]
[1647040441777,123.1,81.159,81.112,59.861191]
[1647040441978,124.76578642,81.159,81.112,59.861191]
[1647040442779,124.76578642,81.159,81.104,22.5157]
[1647040442979,123.1,81.149,81.104,22.5157]
[1647040443179,1.66578642,81.148,81.093,24.2978]
[1647040443379,1.66578642,81.146,81.093,24.2978]
[1647040443881,1.66578642,81.141,81.093,24.2978]
[1647040444380,1.66578642,81.142,81.093,24.2978]
[1647040444581,123.1,81.139,81.054,6.163]
[1647040444780,124.76578642,81.139,81.054,6.163]
[1647040444984,1.66578642,81.137,81.054,6.163]
[1647040445385,124.76578642,81.137,81.055,24.5747]
[1647040445584,123.1,81.137,81.06,18.5011]
[1647040445784,123.1,81.137,81.061,6.165]
[1647040448894,17.2141892,81.145,81.071,40.68755291]
[1647040449092,17.2141892,81.145,81.072,29.2545]
[1647040449291,17.2141892,81.145,81.072,32.04668001]
[1647040449691,17.2141892,81.145,81.073,2.79218001]
[1647040449896,17.2141892,81.145,81.074,6.164]
[1647040450093,17.2141892,81.145,81.08,18.4949]
[1647040450291,17.2141892,81.145,81.081,6.164]
[1647040450891,123.1,81.144,81.082,23.6654]
[1647040451519,17.2141892,81.145,81.082,23.6654]
[1647040452119,6.42005505,81.144,81.082,23.6654]
[1647040453317,123.1,81.143,81.082,23.6654]
[1647040453518,123.1,81.139,81.082,23.6654]
[1647040454019,6.42005505,81.144,81.082,23.6654]
[1647040454619,123.1,81.143,81.082,23.6654]
[1647040455018,17.2141892,81.145,81.082,23.6654]
[1647040455819,123.1,81.144,81.082,23.6654]
[1647040458831,17.2141892,81.145,81.082,23.6654]
[1647040459030,17.2141892,81.145,81.091,55.5644775]
[1647040460031,18.87997562,81.145,81.091,55.5644775]
[1647040460434,1.66578642,81.143,81.091,55.5644775]
[1647040460832,1.66578642,81.144,81.091,55.5644775]
[1647040461335,18.5,81.14,81.082,23.6654]
[1647040461737,1.66578642,81.139,81.082,23.6654]
[1647040461934,1.66578642,81.137,81.082,23.6654]
[1647040462333,18.5028,81.13,81.082,23.6654]
[1647040462536,1.66578642,81.136,81.082,23.6654]
[1647040462735,31.79425057,81.138,81.082,23.6654]
[1647040463438,1.66578642,81.139,81.082,23.6654]
[1647040464638,1.66578642,81.138,81.082,23.6654]
[1647040465938,1.66578642,81.137,81.082,23.6654]
[1647040466641,1.66578642,81.138,81.082,23.6654]
[1647040466942,1.66578642,81.137,81.082,23.6654]
[1647040467843,1.66578642,81.136,81.082,23.6654]
[1647040468544,1.66578642,81.135,81.082,23.6654]
[1647040468747,1.66578642,81.136,81.082,23.6654]
[1647040469144,1.66578642,81.135,81.082,23.6654]
[1647040469343,1.66578642,81.134,81.082,23.6654]
[1647040470769,49.00843977,81.145,81.09,18.4944]
[1647040470770,1.66578642,81.137,81.09,18.4944]
[1647040470968,1.66578642,81.137,81.091,34.63603315]
[1647040471368,1.66578642,81.143,81.091,34.63603315]
[1647040471571,1.66578642,81.147,81.092,22.7181]
[1647040471774,1.66578642,81.148,81.1,18.4918]
[1647040471974,1.66578642,81.157,81.1,18.4918]
[1647040472176,1.66578642,81.158,81.1,18.4918]
[1647040472376,1.66578642,81.159,81.101,148.61028001]
[1647040472576,1.66578642,81.162,81.101,148.61028001]
[1647040472775,1.66578642,81.165,81.102,2.79218001]
[1647040472973,46.69668195,81.171,81.103,123.1]
[1647040473173,1.66578642,81.173,81.104,184.71599726]
[1647040473374,1.66578642,81.173,81.111,123.1]
[1647040473877,1.66578642,81.17,81.113,123.1]
[1647040474074,3.34224595,81.204,81.112,31.57378737]
[1647040474075,1.66578642,81.181,81.115,123.1]
[1647040474274,1.66578642,81.182,81.115,123.1]
[1647040474474,1.66578642,81.182,81.117,123.1]
[1647040474677,1.66578642,81.19,81.121,123.1]
[1647040474875,1.66578642,81.193,81.123,123.1]
[1647040475281,1.66578642,81.193,81.123,151.88160736]
[1647040475476,1.66578642,81.194,81.125,123.1]
[1647040475677,44.57457101,81.194,81.127,123.1]
[1647040475875,44.57457101,81.194,81.126,58.03663315]
[1647040475876,44.57457101,81.194,81.129,123.1]
[1647040476076,44.57457101,81.194,81.131,123.1]
[1647040476381,44.57457101,81.194,81.128,26.64708009]
[1647040476582,44.57457101,81.194,81.129,2.79218009]
[1647040477182,44.57457101,81.194,81.14,18.4816]
[1647040477381,44.57457101,81.194,81.141,47.1343957]
[1647040477581,123.1,81.193,81.128,23.8549]
[1647040477782,82.78856158,81.194,81.128,23.8549]
[1647040478195,123.1,81.191,81.128,23.8549]
[1647040478583,123.1,81.189,81.128,23.8549]
[1647040478986,123.1,81.187,81.128,23.8549]
[1647040479383,123.1,81.185,81.128,23.8549]
[1647040479585,123.1,81.179,81.128,23.8549]
[1647040479786,140.69339856,81.178,81.128,23.8549]
[1647040479983,20.63787813,81.178,81.128,23.8549]
[1647040480386,17.59339856,81.178,81.128,23.8549]
[1647040480984,17.59339856,81.178,81.129,54.09497265]
[1647040485690,1.66578642,81.191,81.13,18.485]
[1647040485890,1.66578642,81.197,81.13,18.485]
[1647040486091,22.5485,81.198,81.13,18.485]
[1647040486290,24.21428642,81.198,81.13,18.485]
[1647040486491,1.66578642,81.199,81.13,18.485]
[1647040486689,46.74865701,81.198,81.13,18.485]
[1647040486889,48.41444343,81.198,81.13,18.485]
[1647040487289,46.74865701,81.198,81.13,18.485]
[1647040489697,123.1,81.197,81.128,23.8549]
[1647040489897,126.14447957,81.197,81.128,23.8549]
[1647040490099,1.66578642,81.195,81.128,23.8549]
[1647040490298,1.66578642,81.194,81.128,23.8549]
[1647040490597,1.66578642,81.192,81.128,23.8549]
[1647040491198,123.1,81.189,81.128,23.8549]
[1647040492904,124.76578642,81.189,81.128,23.8549]
[1647040494502,1.66578642,81.188,81.128,23.8549]
[1647040495205,1.66578642,81.19,81.13,18.4853]
[1647040495403,1.66578642,81.197,81.13,18.4853]
[1647040495604,1.66578642,81.2,81.131,123.1]
[1647040495802,1.66578642,81.205,81.131,31.57378745]
[1647040496003,1.66578642,81.205,81.132,28.78160736]
[1647040496227,1.66578642,81.205,81.132,31.57378745]
[1647040496622,1.66578642,81.207,81.132,31.57378745]
[1647040496823,1.66578642,81.207,81.15,18.4795]
[1647040497026,1.66578642,81.206,81.151,43.08597376]
[1647040497224,1.66578642,81.207,81.151,43.08597376]
[1647040497424,169.84865701,81.198,81.151,43.08597376]
[1647040497623,46.74865701,81.198,81.151,43.08597376]
[1647040499626,169.84865701,81.198,81.151,43.08597376]
[1647040499827,169.84865701,81.198,81.141,22.6557]
[1647040500729,169.84865701,81.198,81.142,48.13198923]
[1647040501528,1.66578642,81.196,81.143,6.159]
[1647040502128,1.66578642,81.195,81.143,6.159]
[1647040503229,1.66578642,81.196,81.143,6.159]
[1647040503429,1.66578642,81.195,81.143,6.159]
[1647040503930,1.66578642,81.196,81.143,6.159]
[1647040504933,1.66578642,81.197,81.143,6.159]
[1647040505130,1.66578642,81.196,81.143,6.159]
[1647040505330,1.66578642,81.197,81.143,6.159]
[1647040505635,1.66578642,81.196,81.143,6.159]
[1647040505830,1.66578642,81.197,81.143,6.159]
[1647040506430,124.76578642,81.197,81.143,6.159]
[1647040506931,123.1,81.197,81.143,6.159]
[1647040507132,48.41444343,81.198,81.143,6.159]
[1647040507930,171.51444343,81.198,81.143,6.159]
[1647040508532,48.41444343,81.198,81.143,6.159]
[1647040510135,46.74865701,81.198,81.143,6.159]
[1647040510336,48.41444343,81.198,81.143,6.159]
[1647040511237,46.74865701,81.198,81.143,6.159]
[1647040511437,46.74865701,81.198,81.142,48.13198923]
[1647040512038,46.74865701,81.198,81.15,18.48]
[1647040512537,46.74865701,81.198,81.151,6.159]
[1647040515644,1.66578642,81.201,81.151,6.159]
[1647040515845,32.16293195,81.253,81.16,18.4781]
[1647040516050,1.67545832,81.238,81.161,152.9075]
[1647040516250,6.71963464,81.267,81.163,123.1]
[1647040516446,12.85942269,81.304,81.168,73.87]
[1647040516647,54.08793198,81.303,81.182,4.6284349]
[1647040516848,54.08793198,81.303,81.191,123.1]
[1647040516849,123.1,81.301,81.191,123.1]
[1647040517049,6.71963464,81.3,81.192,53.9061]
[1647040517248,123.1,81.299,81.192,53.9061]
[1647040517447,123.1,81.299,81.192,88.01786733]
[1647040517648,123.1,81.297,81.193,2.79218009]
[1647040517848,123.1,81.297,81.194,6.154]
[1647040518048,123.1,81.277,81.201,48.12004118]
[1647040518247,123.1,81.277,81.202,29.6203]
[1647040519249,123.1,81.277,81.21,18.4664]
[1647040520050,18.4685,81.27,81.211,6.154]
[1647040520250,14.79967223,81.278,81.21,18.4663]
[1647040520453,14.79967223,81.278,81.211,6.154]
[1647040521255,137.89967223,81.278,81.211,6.154]
[1647040521454,137.89967223,81.278,81.203,6.154]
[1647040521653,137.89967223,81.278,81.202,29.6203]
[1647040521654,142.63967223,81.278,81.202,29.6203]
[1647040522253,18.4684,81.27,81.202,29.6203]
[1647040522473,123.1,81.269,81.202,29.6203]
[1647040523078,18.4684,81.27,81.202,29.6203]
[1647040523977,123.1,81.269,81.202,29.6203]
[1647040524475,18.471,81.26,81.202,29.6203]
[1647040524676,47.36829734,81.259,81.202,29.6203]
[1647040526379,123.1,81.258,81.202,29.6203]
[1647040528581,47.36829734,81.259,81.202,29.6203]
[1647040531287,47.36829734,81.259,81.21,18.4668]
[1647040535489,47.36829734,81.259,81.202,29.6203]
[1647040537090,123.1,81.258,81.202,29.6203]
[1647040538393,123.1,81.249,81.202,29.6203]
[1647040539497,123.1,81.249,81.17,153.97084653]
[1647040539498,123.1,81.239,81.15,14.89]
[1647040539692,130.32,81.239,81.161,22.5155]
[1647040539892,123.1,81.237,81.161,22.5155]
[1647040540293,123.1,81.237,81.16,22.5458]
[1647040540498,73.87,81.234,81.144,22.5155]
[1647040540695,196.97,81.229,81.135,65.38708861]
[1647040540895,196.97,81.227,81.135,65.38708861]
[1647040541494,196.97,81.225,81.135,65.38708861]
[1647040541694,47.36829734,81.208,81.135,65.38708861]
[1647040541996,123.1,81.207,81.135,65.38708861]
[1647040543095,18.4856,81.2,81.135,65.38708861]
[1647040543297,47.36829734,81.208,81.136,2.78429397]
[1647040543497,47.36829734,81.208,81.137,23.5113]
[1647040543696,47.36829734,81.208,81.137,51.88128651]
[1647040543900,47.36829734,81.208,81.138,31.15428048]
[1647040544098,47.36829734,81.208,81.14,18.4827]
[1647040544600,47.36829734,81.208,81.141,2.78429397]
[1647040546000,170.46829734,81.208,81.141,2.78429397]
[1647040547402,123.1,81.199,81.141,2.78429397]
[1647040547602,123.1,81.199,81.137,23.5113]
[1647040548506,123.1,81.189,81.137,23.5113]
[1647040550608,123.1,81.179,81.09,27.73218903]
[1647040550805,128.79,81.179,81.098,24.9996]
[1647040551406,123.1,81.177,81.099,58.25369429]
[1647040552005,18.4955,81.17,81.1,18.4917]
[1647040552209,123.1,81.177,81.1,18.4917]
[1647040555211,18.4916,81.17,81.1,18.4917]
[1647040555612,18.4916,81.17,81.1,46.95128724]
[1647040555813,123.1,81.177,81.1,73.98123375]
[1647040556515,123.1,81.177,81.101,2.78307657]
[1647040556815,123.1,81.177,81.11,18.4892]
[1647040557017,123.1,81.177,81.111,22.9695]
[1647040557517,123.1,81.177,81.112,6.161]
[1647040558315,123.1,81.169,81.112,6.161]
[1647040558715,161.97197223,81.178,81.112,6.161]
[1647040560015,123.1,81.169,81.112,6.161]
[1647040561215,18.491,81.17,81.112,6.161]
[1647040561416,161.97197223,81.178,81.112,6.161]
[1647040562416,38.87197223,81.178,81.12,18.4865]
[1647040562619,38.87197223,81.178,81.121,6.16]
[1647040562819,38.87197223,81.178,81.122,23.8028]
[1647040563018,161.97197223,81.178,81.124,37.99833612]
[1647040563218,161.97197223,81.178,81.125,6.16]
[1647040563417,161.97197223,81.178,81.123,6.16]
[1647040564736,123.1,81.169,81.122,23.8028]
[1647040565936,18.4911,81.17,81.122,23.8028]
[1647040567037,123.1,81.169,81.122,23.8028]
[1647040567437,18.4911,81.17,81.122,23.8028]
[1647040567637,123.1,81.169,81.122,23.8028]
[1647040568440,123.1,81.159,81.101,6.16]
[1647040569441,123.1,81.167,81.101,6.16]
[1647040570043,18.497,81.15,81.101,6.16]
[1647040570246,123.1,81.149,81.101,6.16]
[1647040570442,123.1,81.149,81.069,22.5226]
[1647040570647,123.1,81.147,81.069,22.5226]
[1647040571048,123.1,81.145,81.07,49.12362671]
[1647040571656,3.04447957,81.144,81.07,49.12362671]
[1647040572255,123.1,81.139,81.07,49.12362671]
[1647040573263,123.1,81.129,81.07,49.12362671]
[1647040575086,123.1,81.119,81.07,49.12362671]
[1647040575263,14.79967223,81.118,81.07,49.12362671]
[1647040577870,123.1,81.117,81.07,49.12362671]
[1647040578471,123.1,81.117,81.069,22.5226]
[1647040580370,14.79967223,81.118,81.069,22.5226]
[1647040584294,18.5048,81.11,81.069,22.5226]
[1647040585594,123.1,81.109,81.069,22.5226]
[1647040587298,18.5048,81.11,81.069,22.5226]
[1647040588901,123.1,81.109,81.069,22.5226]
[1647040589204,18.5048,81.11,81.069,22.5226]
[1647040589901,14.79967223,81.118,81.069,22.5226]
[1647040591407,123.1,81.109,81.069,22.5226]
[1647040592604,123.1,81.117,81.069,22.5226]
[1647040592805,14.79967223,81.118,81.069,22.5226]
[1647040593611,123.1,81.117,81.069,22.5226]
[1647040594807,14.79967223,81.118,81.069,22.5226]
[1647040595006,14.79967223,81.118,81.07,6.165]